[Event "Early Titled Tuesday Blitz | February 8 2022"]
[White "Eynullayev, Altay"]
[Black "Sharavdorj, Dashzegve"]
[WhiteFideId "13413562"]
[BlackFideId "4900340"]
[WhiteElo "2079"]
[BlackElo "2366"]
[Result "0-1"]
[Round "03"]
[TimeControl "180+1"]
[Date "2022.02.08"]
[WhiteClock "0:00:11"]
[BlackClock "0:01:19"]

1. e4 {[%clk 0:03:00]}  e6 {[%clk 0:02:57]} 2. d4 {[%clk 0:03:00]}  d5 {[%clk 0:02:57]} 3. e5 {[%clk 0:03:00]}  c5 {[%clk 0:02:57]} 4. c3 {[%clk 0:03:00]}  Nc6 {[%clk 0:02:57]} 5. Nf3 {[%clk 0:03:01]}  Bd7 {[%clk 0:02:57]} 6. a3 {[%clk 0:03:00]}  Nge7 {[%clk 0:02:56]} 7. Bd3 {[%clk 0:02:59]}  Ng6 {[%clk 0:02:55]} 8. O-O {[%clk 0:02:57]}  Be7 {[%clk 0:02:55]} 9. g3 {[%clk 0:02:56]}  O-O {[%clk 0:02:54]} 10. h4 {[%clk 0:02:53]}  cxd4 {[%clk 0:02:54]} 11. cxd4 {[%clk 0:02:53]}  f6 {[%clk 0:02:54]} 12. h5 {[%clk 0:02:53]}  Nh8 {[%clk 0:02:53]} 13. h6 {[%clk 0:02:35]}  g6 {[%clk 0:02:53]} 14. Bf4 {[%clk 0:02:30]}  Nf7 {[%clk 0:02:50]} 15. exf6 {[%clk 0:02:29]}  Bxf6 {[%clk 0:02:50]} 16. Nc3 {[%clk 0:02:26]}  Qb6 {[%clk 0:02:49]} 17. Na4 {[%clk 0:02:24]}  Qd8 {[%clk 0:02:44]} 18. Nc5 {[%clk 0:02:22]}  Bc8 {[%clk 0:02:40]} 19. Re1 {[%clk 0:02:18]}  Qe7 {[%clk 0:02:36]} 20. Qc2 {[%clk 0:02:08]}  Nxd4 {[%clk 0:02:31]} 21. Nxd4 {[%clk 0:02:07]}  Bxd4 {[%clk 0:02:30]} 22. b4 {[%clk 0:01:17]}  Bxa1 {[%clk 0:02:24]} 23. Rxa1 {[%clk 0:01:14]}  Qf6 {[%clk 0:02:23]} 24. Re1 {[%clk 0:01:07]}  e5 {[%clk 0:02:23]} 25. Bc1 {[%clk 0:01:06]}  e4 {[%clk 0:02:17]} 26. Be2 {[%clk 0:00:56]}  Ne5 {[%clk 0:02:16]} 27. Bf4 {[%clk 0:00:57]}  g5 {[%clk 0:02:15]} 28. Qb3 {[%clk 0:00:34]}  gxf4 {[%clk 0:02:12]} 29. Qxd5+ {[%clk 0:00:34]}  Kh8 {[%clk 0:02:11]} 30. Nxe4 {[%clk 0:00:34]}  Qe6 {[%clk 0:02:04]} 31. Qd4 {[%clk 0:00:34]}  fxg3 {[%clk 0:02:00]} 32. Bg4 {[%clk 0:00:27]}  gxf2+ {[%clk 0:01:54]} 33. Nxf2 {[%clk 0:00:27]}  Qf6 {[%clk 0:01:49]} 34. Rxe5 {[%clk 0:00:23]}  Bxg4 {[%clk 0:01:44]} 35. Nxg4 {[%clk 0:00:23]}  Qf1+ {[%clk 0:01:42]} 36. Kh2 {[%clk 0:00:23]}  Qf4+ {[%clk 0:01:38]} 37. Qxf4 {[%clk 0:00:23]}  Rxf4 {[%clk 0:01:38]} 38. Rg5 {[%clk 0:00:18]}  Rg8 {[%clk 0:01:36]} 39. Kg3 {[%clk 0:00:19]}  Rxg5 {[%clk 0:01:34]} 40. Kxf4 {[%clk 0:00:19]}  Rg6 {[%clk 0:01:34]} 41. Kf5 {[%clk 0:00:19]}  Ra6 {[%clk 0:01:33]} 42. Kg5 {[%clk 0:00:18]}  Rxa3 {[%clk 0:01:32]} 43. Ne5 {[%clk 0:00:18]}  Kg8 {[%clk 0:01:32]} 44. Kf6 {[%clk 0:00:18]}  Rb3 {[%clk 0:01:30]} 45. Ke7 {[%clk 0:00:17]}  Re3 {[%clk 0:01:29]} 46. Kd6 {[%clk 0:00:17]}  a6 {[%clk 0:01:26]} 47. Nd7 {[%clk 0:00:16]}  Rd3+ {[%clk 0:01:26]} 48. Kc7 {[%clk 0:00:16]}  Rb3 {[%clk 0:01:23]} 49. Nf6+ {[%clk 0:00:13]}  Kf7 {[%clk 0:01:20]} 50. Nxh7 {[%clk 0:00:14]}  Kg6 {[%clk 0:01:20]} 51. Nf8+ {[%clk 0:00:13]}  Kxh6 {[%clk 0:01:20]} 52. Nd7 {[%clk 0:00:12]}  Rxb4 {[%clk 0:01:19]} 53. Kd6 {[%clk 0:00:11]}  Rd4+ {[%clk 0:01:19]} 54. Kc7 {[%clk 0:00:10]}  Rxd7+ {[%clk 0:01:19]} 55. Kxd7 {[%clk 0:00:11]}  a5 {[%clk 0:01:19]} 0-1


[Site "https://www.chess.com"]

[Event "Early Titled Tuesday Blitz | February 8 2022"]
[White "Ezat, Mohamed"]
[Black "Poormosavi, Seyed Kian"]
[WhiteFideId "10600906"]
[BlackFideId "12585807"]
[WhiteElo "2386"]
[BlackElo "2116"]
[Result "0-1"]
[Round "03"]
[TimeControl "180+1"]
[Date "2022.02.08"]
[WhiteClock "0:00:01"]
[BlackClock "0:00:12"]

1. d4 {[%clk 0:03:00]}  Nf6 {[%clk 0:02:55]} 2. c4 {[%clk 0:03:00]}  b6 {[%clk 0:02:54]} 3. Nc3 {[%clk 0:02:58]}  Bb7 {[%clk 0:02:54]} 4. Qc2 {[%clk 0:02:58]}  d5 {[%clk 0:02:54]} 5. cxd5 {[%clk 0:02:56]}  Nxd5 {[%clk 0:02:55]} 6. e4 {[%clk 0:02:51]}  Nxc3 {[%clk 0:02:55]} 7. bxc3 {[%clk 0:02:51]}  e5 {[%clk 0:02:55]} 8. Nf3 {[%clk 0:02:49]}  exd4 {[%clk 0:02:53]} 9. cxd4 {[%clk 0:02:48]}  Bb4+ {[%clk 0:02:50]} 10. Bd2 {[%clk 0:02:44]}  Qe7 {[%clk 0:02:51]} 11. Bb5+ {[%clk 0:02:33]}  c6 {[%clk 0:02:34]} 12. Bd3 {[%clk 0:02:32]}  O-O {[%clk 0:02:31]} 13. O-O {[%clk 0:02:31]}  Bxd2 {[%clk 0:02:28]} 14. Nxd2 {[%clk 0:02:29]}  Rd8 {[%clk 0:02:26]} 15. Nf3 {[%clk 0:02:27]}  Na6 {[%clk 0:02:23]} 16. e5 {[%clk 0:02:20]}  g6 {[%clk 0:02:10]} 17. a3 {[%clk 0:02:13]}  c5 {[%clk 0:02:09]} 18. Qe2 {[%clk 0:02:11]}  Nc7 {[%clk 0:02:02]} 19. Be4 {[%clk 0:02:09]}  Ba6 {[%clk 0:02:00]} 20. Qe3 {[%clk 0:02:05]}  Bxf1 {[%clk 0:02:00]} 21. Bxa8 {[%clk 0:02:04]}  Bxg2 {[%clk 0:01:53]} 22. Kxg2 {[%clk 0:02:00]}  Rxa8 {[%clk 0:01:24]} 23. Qh6 {[%clk 0:01:59]}  Qf8 {[%clk 0:00:48]} 24. Qh4 {[%clk 0:01:52]}  cxd4 {[%clk 0:00:48]} 25. Ng5 {[%clk 0:01:50]}  Qg7 {[%clk 0:00:44]} 26. Ne4 {[%clk 0:01:46]}  Qxe5 {[%clk 0:00:38]} 27. Re1 {[%clk 0:01:37]}  Kg7 {[%clk 0:00:33]} 28. Ng5 {[%clk 0:01:32]}  Qd5+ {[%clk 0:00:32]} 29. Kg1 {[%clk 0:01:31]}  h6 {[%clk 0:00:32]} 30. Ne4 {[%clk 0:01:31]}  Re8 {[%clk 0:00:28]} 31. f3 {[%clk 0:01:13]}  Re6 {[%clk 0:00:25]} 32. Rc1 {[%clk 0:01:09]}  Ne8 {[%clk 0:00:25]} 33. Rc8 {[%clk 0:01:07]}  Nf6 {[%clk 0:00:23]} 34. Ng3 {[%clk 0:00:26]}  d3 {[%clk 0:00:20]} 35. Qb4 {[%clk 0:00:20]}  Rd6 {[%clk 0:00:18]} 36. Qd2 {[%clk 0:00:15]}  Qd4+ {[%clk 0:00:16]} 37. Kg2 {[%clk 0:00:15]}  Re6 {[%clk 0:00:16]} 38. Rc3 {[%clk 0:00:05]}  Rd6 {[%clk 0:00:16]} 39. Rb3 {[%clk 0:00:05]}  Qc4 {[%clk 0:00:16]} 40. Rc3 {[%clk 0:00:04]}  Qd5 {[%clk 0:00:16]} 41. Rc8 {[%clk 0:00:02]}  Qd4 {[%clk 0:00:12]} 42. Rc3 {[%clk 0:00:02]}  Nd5 {[%clk 0:00:12]} 43. Rb3 {[%clk 0:00:01]}  Nf4+ {[%clk 0:00:12]} 44. Kf1 {[%clk 0:00:01]}  Re6 {[%clk 0:00:12]} 0-1


[Site "https://www.chess.com"]

[Event "Early Titled Tuesday Blitz | February 8 2022"]
[White "Goltseva, Ekaterina"]
[Black "Lauridsen, Jesper Morch"]
[WhiteFideId "24173770"]
[BlackFideId "1401890"]
[WhiteElo "2140"]
[BlackElo "2220"]
[Result "1-0"]
[Round "03"]
[TimeControl "180+1"]
[Date "2022.02.08"]
[WhiteClock "0:01:07"]
[BlackClock "0:00:49"]

1. d4 {[%clk 0:02:27]}  Nf6 {[%clk 0:02:58]} 2. c4 {[%clk 0:02:26]}  c5 {[%clk 0:02:58]} 3. d5 {[%clk 0:02:26]}  e6 {[%clk 0:02:59]} 4. Nc3 {[%clk 0:02:26]}  exd5 {[%clk 0:02:58]} 5. cxd5 {[%clk 0:02:27]}  Bd6 {[%clk 0:02:58]} 6. e4 {[%clk 0:02:26]}  O-O {[%clk 0:02:56]} 7. Be2 {[%clk 0:02:26]}  Re8 {[%clk 0:02:52]} 8. Qc2 {[%clk 0:02:27]}  Na6 {[%clk 0:02:40]} 9. a3 {[%clk 0:02:25]}  Rb8 {[%clk 0:02:30]} 10. Bg5 {[%clk 0:02:17]}  h6 {[%clk 0:02:28]} 11. Bh4 {[%clk 0:02:16]}  g5 {[%clk 0:02:28]} 12. Bg3 {[%clk 0:02:16]}  Be5 {[%clk 0:02:17]} 13. Bxe5 {[%clk 0:02:10]}  Rxe5 {[%clk 0:02:17]} 14. Nf3 {[%clk 0:02:10]}  Re8 {[%clk 0:02:14]} 15. e5 {[%clk 0:02:07]}  Nh7 {[%clk 0:02:11]} 16. O-O-O {[%clk 0:01:55]}  b5 {[%clk 0:02:08]} 17. Bxb5 {[%clk 0:01:53]}  Qa5 {[%clk 0:02:06]} 18. Bd3 {[%clk 0:01:48]}  Nf8 {[%clk 0:01:54]} 19. Ne4 {[%clk 0:01:45]}  Rb6 {[%clk 0:01:42]} 20. Nf6+ {[%clk 0:01:43]}  Rxf6 {[%clk 0:01:42]} 21. exf6 {[%clk 0:01:43]}  d6 {[%clk 0:01:38]} 22. h4 {[%clk 0:01:29]}  g4 {[%clk 0:01:36]} 23. Ng5 {[%clk 0:01:24]}  hxg5 {[%clk 0:01:27]} 24. hxg5 {[%clk 0:01:24]}  c4 {[%clk 0:01:21]} 25. Bh7+ {[%clk 0:01:10]}  Kh8 {[%clk 0:01:20]} 26. g6 {[%clk 0:01:10]}  fxg6 {[%clk 0:00:48]} 27. Bxg6+ {[%clk 0:01:09]}  Kg8 {[%clk 0:00:49]} 28. f7+ {[%clk 0:01:07]} 1-0


[Site "https://www.chess.com"]

[Event "Early Titled Tuesday Blitz | February 8 2022"]
[White "Gontcharov, Vladislav"]
[Black "Demchenko, Anton"]
[WhiteFideId "4123492"]
[BlackFideId "4160258"]
[WhiteElo "2503"]
[BlackElo "2539"]
[Result "1/2-1/2"]
[Round "03"]
[TimeControl "180+1"]
[Date "2022.02.08"]
[WhiteClock "0:00:14"]
[BlackClock "0:01:01"]

1. e4 {[%clk 0:03:00]}  e5 {[%clk 0:03:00]} 2. Nf3 {[%clk 0:03:00]}  Nc6 {[%clk 0:03:00]} 3. Bb5 {[%clk 0:02:59]}  a6 {[%clk 0:03:01]} 4. Ba4 {[%clk 0:02:59]}  Nge7 {[%clk 0:03:01]} 5. O-O {[%clk 0:02:48]}  Ng6 {[%clk 0:03:01]} 6. d4 {[%clk 0:02:44]}  exd4 {[%clk 0:02:56]} 7. Nxd4 {[%clk 0:02:44]}  Nxd4 {[%clk 0:02:56]} 8. Qxd4 {[%clk 0:02:43]}  b5 {[%clk 0:02:57]} 9. Bb3 {[%clk 0:02:43]}  Bb7 {[%clk 0:02:57]} 10. c4 {[%clk 0:02:24]}  Bd6 {[%clk 0:02:33]} 11. Nc3 {[%clk 0:01:48]}  Qh4 {[%clk 0:02:12]} 12. g3 {[%clk 0:01:47]}  Qh5 {[%clk 0:02:11]} 13. Bd1 {[%clk 0:01:32]}  Qe5 {[%clk 0:01:58]} 14. Qxe5+ {[%clk 0:01:29]}  Bxe5 {[%clk 0:01:58]} 15. cxb5 {[%clk 0:01:26]}  Bxc3 {[%clk 0:01:58]} 16. bxc3 {[%clk 0:01:23]}  axb5 {[%clk 0:01:59]} 17. f3 {[%clk 0:01:18]}  O-O {[%clk 0:01:56]} 18. Bb3 {[%clk 0:01:16]}  d6 {[%clk 0:01:49]} 19. Be3 {[%clk 0:01:02]}  Ne5 {[%clk 0:01:45]} 20. Bd4 {[%clk 0:00:52]}  Rfe8 {[%clk 0:01:43]} 21. a4 {[%clk 0:00:46]}  bxa4 {[%clk 0:01:31]} 22. Rxa4 {[%clk 0:00:43]}  Rxa4 {[%clk 0:01:20]} 23. Bxa4 {[%clk 0:00:43]}  Ra8 {[%clk 0:01:20]} 24. Bxe5 {[%clk 0:00:26]}  Rxa4 {[%clk 0:01:12]} 25. Rb1 {[%clk 0:00:25]}  Ra7 {[%clk 0:01:12]} 26. Bd4 {[%clk 0:00:24]}  c5 {[%clk 0:01:13]} 27. Be3 {[%clk 0:00:11]}  f5 {[%clk 0:01:09]} 28. exf5 {[%clk 0:00:09]}  Bxf3 {[%clk 0:01:04]} 29. Bf4 {[%clk 0:00:09]}  d5 {[%clk 0:00:58]} 30. Rb8+ {[%clk 0:00:08]}  Kf7 {[%clk 0:00:58]} 31. Rc8 {[%clk 0:00:07]}  c4 {[%clk 0:00:53]} 32. Rc7+ {[%clk 0:00:07]}  Rxc7 {[%clk 0:00:54]} 33. Bxc7 {[%clk 0:00:08]}  Kf6 {[%clk 0:00:54]} 34. Bb6 {[%clk 0:00:08]}  Kxf5 {[%clk 0:00:54]} 35. Bd4 {[%clk 0:00:09]}  g5 {[%clk 0:00:53]} 36. Bh8 {[%clk 0:00:09]}  Ke4 {[%clk 0:00:53]} 37. Bd4 {[%clk 0:00:09]}  Kd3 {[%clk 0:00:52]} 38. Kf2 {[%clk 0:00:10]}  g4 {[%clk 0:00:52]} 39. Bh8 {[%clk 0:00:10]}  Kd2 {[%clk 0:00:51]} 40. Bd4 {[%clk 0:00:11]}  Kd3 {[%clk 0:00:51]} 41. Bh8 {[%clk 0:00:11]}  Be4 {[%clk 0:00:52]} 42. Bd4 {[%clk 0:00:11]}  Bf5 {[%clk 0:00:51]} 43. Bh8 {[%clk 0:00:11]}  h5 {[%clk 0:00:52]} 44. Bd4 {[%clk 0:00:12]}  Bd7 {[%clk 0:00:51]} 45. Bh8 {[%clk 0:00:11]}  Ba4 {[%clk 0:00:52]} 46. Bd4 {[%clk 0:00:12]}  Kd2 {[%clk 0:00:53]} 47. Bh8 {[%clk 0:00:12]}  Bc2 {[%clk 0:00:52]} 48. Bd4 {[%clk 0:00:12]}  Be4 {[%clk 0:00:51]} 49. Bh8 {[%clk 0:00:12]}  Kd3 {[%clk 0:00:52]} 50. Bd4 {[%clk 0:00:13]}  Bf3 {[%clk 0:00:53]} 51. Bh8 {[%clk 0:00:13]}  Ke4 {[%clk 0:00:53]} 52. Bd4 {[%clk 0:00:13]}  Kf5 {[%clk 0:00:54]} 53. Bh8 {[%clk 0:00:13]}  Kg5 {[%clk 0:00:54]} 54. Bd4 {[%clk 0:00:14]}  h4 {[%clk 0:00:55]} 55. Bh8 {[%clk 0:00:13]}  h3 {[%clk 0:00:54]} 56. Bd4 {[%clk 0:00:13]}  Kf5 {[%clk 0:00:55]} 57. Bh8 {[%clk 0:00:13]}  Ke4 {[%clk 0:00:56]} 58. Bd4 {[%clk 0:00:13]}  Bg2 {[%clk 0:00:56]} 59. Bh8 {[%clk 0:00:13]}  Bf3 {[%clk 0:00:56]} 60. Bd4 {[%clk 0:00:14]}  Bd1 {[%clk 0:00:57]} 61. Bh8 {[%clk 0:00:13]}  Ba4 {[%clk 0:00:58]} 62. Bd4 {[%clk 0:00:13]}  Kd3 {[%clk 0:00:59]} 63. Bh8 {[%clk 0:00:13]}  Bd7 {[%clk 0:00:59]} 64. Bd4 {[%clk 0:00:13]}  Bf5 {[%clk 0:01:00]} 65. Bh8 {[%clk 0:00:13]}  Kd2 {[%clk 0:01:01]} 66. Bd4 {[%clk 0:00:14]}  Be4 {[%clk 0:01:01]} 1/2-1/2


[Site "https://www.chess.com"]

[Event "Early Titled Tuesday Blitz | February 8 2022"]
[White "Grandelius, Nils"]
[Black "Volkov, Sergey"]
[WhiteFideId "1710400"]
[BlackFideId "4122763"]
[WhiteElo "2617"]
[BlackElo "2475"]
[Result "1-0"]
[Round "03"]
[TimeControl "180+1"]
[Date "2022.02.08"]
[WhiteClock "0:00:09"]
[BlackClock "0:00:01"]

1. d4 {[%clk 0:03:00]}  d5 {[%clk 0:02:59]} 2. c4 {[%clk 0:03:00]}  c6 {[%clk 0:02:59]} 3. e3 {[%clk 0:02:58]}  Bf5 {[%clk 0:02:58]} 4. cxd5 {[%clk 0:02:52]}  cxd5 {[%clk 0:02:58]} 5. Qb3 {[%clk 0:02:50]}  Qc8 {[%clk 0:02:56]} 6. Nc3 {[%clk 0:02:48]}  e6 {[%clk 0:02:55]} 7. Nf3 {[%clk 0:02:42]}  Nc6 {[%clk 0:02:54]} 8. Nh4 {[%clk 0:02:40]}  Bg6 {[%clk 0:02:53]} 9. Bd2 {[%clk 0:02:37]}  Be7 {[%clk 0:02:51]} 10. Nxg6 {[%clk 0:02:37]}  hxg6 {[%clk 0:02:51]} 11. Rc1 {[%clk 0:02:36]}  Nf6 {[%clk 0:02:49]} 12. Be2 {[%clk 0:02:28]}  Qc7 {[%clk 0:02:39]} 13. g3 {[%clk 0:02:17]}  Rc8 {[%clk 0:02:36]} 14. O-O {[%clk 0:02:13]}  O-O {[%clk 0:02:19]} 15. Rfd1 {[%clk 0:02:08]}  a6 {[%clk 0:02:08]} 16. Na4 {[%clk 0:02:00]}  Ne4 {[%clk 0:02:06]} 17. Be1 {[%clk 0:01:58]}  b5 {[%clk 0:02:05]} 18. Nc3 {[%clk 0:01:39]}  Nd6 {[%clk 0:01:59]} 19. a4 {[%clk 0:01:33]}  Na5 {[%clk 0:01:46]} 20. Qa2 {[%clk 0:00:59]}  Kh7 {[%clk 0:01:14]} 21. Nxd5 {[%clk 0:00:42]}  Qxc1 {[%clk 0:01:12]} 22. Nxe7 {[%clk 0:00:42]}  Qc2 {[%clk 0:01:08]} 23. Kf1 {[%clk 0:00:24]}  Rc7 {[%clk 0:00:59]} 24. Nxg6 {[%clk 0:00:15]}  fxg6 {[%clk 0:00:53]} 25. Bxa5 {[%clk 0:00:16]}  Rxf2+ {[%clk 0:00:46]} 26. Kxf2 {[%clk 0:00:15]}  Rf7+ {[%clk 0:00:46]} 27. Ke1 {[%clk 0:00:15]}  Qe4 {[%clk 0:00:30]} 28. Qb3 {[%clk 0:00:15]}  Qg2 {[%clk 0:00:27]} 29. Qd3 {[%clk 0:00:06]}  Ne4 {[%clk 0:00:26]} 30. Rc1 {[%clk 0:00:03]}  Qg1+ {[%clk 0:00:20]} 31. Bf1 {[%clk 0:00:03]}  Qf2+ {[%clk 0:00:09]} 32. Kd1 {[%clk 0:00:03]}  Qxf1+ {[%clk 0:00:09]} 33. Qxf1 {[%clk 0:00:04]}  Rxf1+ {[%clk 0:00:09]} 34. Kc2 {[%clk 0:00:05]}  Rf2+ {[%clk 0:00:09]} 35. Kb1 {[%clk 0:00:04]}  Rxh2 {[%clk 0:00:09]} 36. axb5 {[%clk 0:00:04]}  axb5 {[%clk 0:00:08]} 37. Rc6 {[%clk 0:00:05]}  Nxg3 {[%clk 0:00:07]} 38. Rxe6 {[%clk 0:00:05]}  Nf5 {[%clk 0:00:06]} 39. d5 {[%clk 0:00:04]}  Rh1+ {[%clk 0:00:05]} 40. Ka2 {[%clk 0:00:04]}  Rd1 {[%clk 0:00:05]} 41. e4 {[%clk 0:00:05]}  Ng3 {[%clk 0:00:05]} 42. Bc3 {[%clk 0:00:03]}  g5 {[%clk 0:00:05]} 43. Re7 {[%clk 0:00:04]}  Kh6 {[%clk 0:00:04]} 44. Bxg7+ {[%clk 0:00:03]}  Kh5 {[%clk 0:00:05]} 45. Bc3 {[%clk 0:00:03]}  g4 {[%clk 0:00:04]} 46. Rh7+ {[%clk 0:00:01]}  Kg6 {[%clk 0:00:03]} 47. Rg7+ {[%clk 0:00:01]}  Kh5 {[%clk 0:00:04]} 48. Re7 {[%clk 0:00:01]}  Ne2 {[%clk 0:00:03]} 49. Bb4 {[%clk 0:00:02]}  g3 {[%clk 0:00:03]} 50. d6 {[%clk 0:00:02]}  g2 {[%clk 0:00:04]} 51. Rg7 {[%clk 0:00:03]}  g1=Q {[%clk 0:00:02]} 52. Rxg1 {[%clk 0:00:04]}  Nxg1 {[%clk 0:00:03]} 53. e5 {[%clk 0:00:04]}  Kg6 {[%clk 0:00:02]} 54. e6 {[%clk 0:00:04]}  Kf6 {[%clk 0:00:02]} 55. e7 {[%clk 0:00:05]}  Kf7 {[%clk 0:00:03]} 56. Kb3 {[%clk 0:00:05]}  Ke8 {[%clk 0:00:03]} 57. Kc2 {[%clk 0:00:05]}  Rf1 {[%clk 0:00:02]} 58. Bc5 {[%clk 0:00:05]}  Kd7 {[%clk 0:00:03]} 59. Kc3 {[%clk 0:00:06]}  Nf3 {[%clk 0:00:03]} 60. Kb4 {[%clk 0:00:06]}  Ne5 {[%clk 0:00:03]} 61. Kxb5 {[%clk 0:00:07]}  Nf7 {[%clk 0:00:02]} 62. b4 {[%clk 0:00:07]}  Re1 {[%clk 0:00:02]} 63. Ka6 {[%clk 0:00:05]}  Nxd6 {[%clk 0:00:02]} 64. b5 {[%clk 0:00:05]}  Ra1+ {[%clk 0:00:01]} 65. Kb6 {[%clk 0:00:05]}  Nc8+ {[%clk 0:00:01]} 66. Kb7 {[%clk 0:00:06]}  Nxe7 {[%clk 0:00:01]} 67. Bxe7 {[%clk 0:00:07]}  Kxe7 {[%clk 0:00:01]} 68. b6 {[%clk 0:00:07]}  Kd7 {[%clk 0:00:01]} 69. Kb8 {[%clk 0:00:08]}  Kc6 {[%clk 0:00:01]} 70. b7 {[%clk 0:00:09]} 1-0


[Site "https://www.chess.com"]

[Event "Early Titled Tuesday Blitz | February 8 2022"]
[White "Guliyev, Namig"]
[Black "Shimanov, Aleksandr"]
[WhiteFideId "13400363"]
[BlackFideId "4198603"]
[WhiteElo "2698"]
[BlackElo "2901"]
[Result "1-0"]
[Round "03"]
[TimeControl "180+1"]
[Date "2022.02.08"]
[WhiteClock "0:00:26"]
[BlackClock "0:00:03"]

1. e4 {[%clk 0:02:12]}  d5 {[%clk 0:02:58]} 2. exd5 {[%clk 0:02:11]}  Qxd5 {[%clk 0:02:59]} 3. Nc3 {[%clk 0:02:10]}  Qe5+ {[%clk 0:02:59]} 4. Be2 {[%clk 0:02:10]}  Bg4 {[%clk 0:02:59]} 5. d4 {[%clk 0:02:11]}  Bxe2 {[%clk 0:02:58]} 6. Ncxe2 {[%clk 0:02:11]}  Qd6 {[%clk 0:02:37]} 7. Nf3 {[%clk 0:02:11]}  Nf6 {[%clk 0:02:37]} 8. O-O {[%clk 0:02:11]}  e6 {[%clk 0:02:37]} 9. Bf4 {[%clk 0:02:11]}  Qd8 {[%clk 0:02:36]} 10. c4 {[%clk 0:02:11]}  Bd6 {[%clk 0:02:34]} 11. Qb3 {[%clk 0:02:11]}  b6 {[%clk 0:02:33]} 12. Rad1 {[%clk 0:02:10]}  O-O {[%clk 0:02:17]} 13. h3 {[%clk 0:02:10]}  Qc8 {[%clk 0:02:02]} 14. Rfe1 {[%clk 0:02:03]}  Nbd7 {[%clk 0:02:01]} 15. Ne5 {[%clk 0:01:54]}  Re8 {[%clk 0:01:54]} 16. Ng3 {[%clk 0:01:50]}  Qb7 {[%clk 0:01:47]} 17. Qe3 {[%clk 0:01:36]}  Rad8 {[%clk 0:01:36]} 18. b3 {[%clk 0:01:35]}  a5 {[%clk 0:01:27]} 19. Rd3 {[%clk 0:01:32]}  Bb4 {[%clk 0:01:23]} 20. Red1 {[%clk 0:01:32]}  Nf8 {[%clk 0:01:21]} 21. h4 {[%clk 0:01:24]}  Ng6 {[%clk 0:01:13]} 22. Bg5 {[%clk 0:01:23]}  Be7 {[%clk 0:01:13]} 23. h5 {[%clk 0:01:18]}  Nxe5 {[%clk 0:00:50]} 24. dxe5 {[%clk 0:01:15]}  Ng4 {[%clk 0:00:25]} 25. Rxd8 {[%clk 0:01:10]}  Bxd8 {[%clk 0:00:24]} 26. Qf4 {[%clk 0:01:07]}  Bxg5 {[%clk 0:00:20]} 27. Qxg5 {[%clk 0:01:03]}  Nh6 {[%clk 0:00:20]} 28. Rd8 {[%clk 0:00:57]}  Kf8 {[%clk 0:00:08]} 29. Rxe8+ {[%clk 0:00:46]}  Kxe8 {[%clk 0:00:09]} 30. Qxg7 {[%clk 0:00:46]}  Nf5 {[%clk 0:00:10]} 31. Qg8+ {[%clk 0:00:32]}  Ke7 {[%clk 0:00:09]} 32. Qg5+ {[%clk 0:00:30]}  Ke8 {[%clk 0:00:09]} 33. Nxf5 {[%clk 0:00:31]}  exf5 {[%clk 0:00:09]} 34. Qxf5 {[%clk 0:00:31]}  h6 {[%clk 0:00:09]} 35. e6 {[%clk 0:00:27]}  fxe6 {[%clk 0:00:03]} 36. Qxe6+ {[%clk 0:00:28]}  Kd8 {[%clk 0:00:04]} 37. Qxh6 {[%clk 0:00:27]}  Qe4 {[%clk 0:00:03]} 38. Qf8+ {[%clk 0:00:27]}  Kd7 {[%clk 0:00:03]} 39. Qf7+ {[%clk 0:00:28]}  Kc8 {[%clk 0:00:03]} 40. g3 {[%clk 0:00:26]} 1-0


[Site "https://www.chess.com"]

[Event "Early Titled Tuesday Blitz | February 8 2022"]
[White "Hakobyan, Aram"]
[Black "Molina, Roberto Junio Brito"]
[WhiteFideId "13306677"]
[BlackFideId "2109450"]
[WhiteElo "2557"]
[BlackElo "2402"]
[Result "1-0"]
[Round "03"]
[TimeControl "180+1"]
[Date "2022.02.08"]
[WhiteClock "0:01:01"]
[BlackClock "0:00:59"]

1. b3 {[%clk 0:03:00]}  d5 {[%clk 0:02:59]} 2. Bb2 {[%clk 0:03:01]}  Bg4 {[%clk 0:02:58]} 3. Nf3 {[%clk 0:03:00]}  Nd7 {[%clk 0:02:56]} 4. g3 {[%clk 0:02:58]}  e6 {[%clk 0:02:52]} 5. h3 {[%clk 0:02:56]}  Bh5 {[%clk 0:02:48]} 6. Bg2 {[%clk 0:02:56]}  c6 {[%clk 0:02:46]} 7. d3 {[%clk 0:02:54]}  f6 {[%clk 0:02:40]} 8. O-O {[%clk 0:02:53]}  Bd6 {[%clk 0:02:39]} 9. c4 {[%clk 0:02:49]}  Ne7 {[%clk 0:02:38]} 10. Nbd2 {[%clk 0:02:46]}  O-O {[%clk 0:02:35]} 11. Qc2 {[%clk 0:02:44]}  e5 {[%clk 0:02:29]} 12. a3 {[%clk 0:02:39]}  a5 {[%clk 0:02:25]} 13. e3 {[%clk 0:02:13]}  Bf7 {[%clk 0:02:15]} 14. Rac1 {[%clk 0:02:11]}  Be6 {[%clk 0:02:13]} 15. Rfd1 {[%clk 0:02:11]}  Qb6 {[%clk 0:02:07]} 16. d4 {[%clk 0:02:08]}  Qa7 {[%clk 0:01:50]} 17. dxe5 {[%clk 0:02:04]}  Nxe5 {[%clk 0:01:49]} 18. cxd5 {[%clk 0:02:01]}  Nxf3+ {[%clk 0:01:45]} 19. Nxf3 {[%clk 0:01:59]}  cxd5 {[%clk 0:01:42]} 20. Nd4 {[%clk 0:01:58]}  Bd7 {[%clk 0:01:38]} 21. Qe2 {[%clk 0:01:42]}  Qb6 {[%clk 0:01:32]} 22. Qh5 {[%clk 0:01:40]}  Bc6 {[%clk 0:01:18]} 23. Qg4 {[%clk 0:01:30]}  Rf7 {[%clk 0:01:13]} 24. h4 {[%clk 0:01:10]}  Re8 {[%clk 0:01:10]} 25. h5 {[%clk 0:01:10]}  h6 {[%clk 0:01:10]} 26. e4 {[%clk 0:01:03]}  Bd7 {[%clk 0:00:59]} 27. Qxd7 {[%clk 0:01:01]} 1-0


[Site "https://www.chess.com"]